bitfinex/quotes_SOLUSD_20241121
["timestamp","ask_amount","ask_price","bid_price","bid_amount"]
[1732183134115,16.3217,241.45,241.39,14.82111989]
[1732183135229,16.3217,241.45,241.27,15.3006]
[1732183135230,14.82111989,241.44,241.37,14.82111989]
[1732183135535,16.3217,241.45,241.35,14.82111989]
[1732183135536,14.82111989,241.42,241.35,14.82111989]
[1732183135710,14.82111989,241.43,241.36,14.82111989]
[1732183135916,14.82111989,241.42,241.34,14.82111989]
[1732183136441,14.82111989,241.41,241.33,14.82111989]
[1732183136610,14.82111989,241.42,241.34,14.82111989]
[1732183140233,14.82111989,241.44,241.36,14.82111989]
[1732183141041,16.3217,241.45,241.38,14.82111989]
[1732183142515,16.3217,241.45,241.4,14.82111989]
[1732183142723,16.3217,241.45,241.41,14.82111989]
[1732183143134,16.546434,241.49,241.32,14.82111989]
[1732183143135,16.546434,241.49,241.42,14.82111989]
[1732183143441,31.17781989,241.5,241.32,14.82111989]
[1732183143442,16.3567,241.5,241.45,14.82111989]
[1732183144824,21.46971989,241.52,241.32,14.82111989]
[1732183144825,6.6486,241.52,241.48,14.82111989]
[1732183145029,15.6496,241.56,241.5,14.82111989]
[1732183145342,30.47071989,241.56,241.49,14.82111989]
[1732183146233,30.47071989,241.56,241.35,23.776884]
[1732183146443,30.47071989,241.56,241.48,14.82111989]
[1732183147020,14.82111989,241.52,241.44,14.82111989]
[1732183147445,14.82111989,241.5,241.42,14.82111989]
[1732183148036,14.82111989,241.48,241.4,14.82111989]
[1732183148749,6.2637,241.47,241.4,14.82111989]
[1732183150246,14.82111989,241.46,241.38,14.82111989]
[1732183150447,14.82111989,241.46,241.36,14.82111989]
[1732183150448,14.82111989,241.44,241.36,14.82111989]
[1732183151527,15.225,241.46,241.4,14.82111989]
[1732183151727,15.225,241.46,241.42,14.82111989]
[1732183151941,16.54078,241.58,241.44,14.82111989]
[1732183151942,14.82111989,241.54,241.44,14.82111989]
[1732183152148,30.73561989,241.54,241.46,14.82111989]
[1732183152453,15.9145,241.54,241.48,14.82111989]
[1732183154634,15.9145,241.54,241.47,14.82111989]
[1732183155145,14.82111989,241.53,241.45,14.82111989]
[1732183155329,30.73561989,241.54,241.47,14.82111989]
[1732183155533,30.73561989,241.54,241.36,15.1373]
[1732183155534,14.82111989,241.52,241.46,14.82111989]
[1732183155728,14.82111989,241.53,241.45,14.82111989]
[1732183156539,14.82111989,241.51,241.43,14.82111989]
[1732183158059,14.82111989,241.53,241.45,14.82111989]
[1732183158857,14.82111989,241.51,241.43,14.82111989]
[1732183160443,14.82111989,241.53,241.45,14.82111989]
[1732183161260,14.82111989,241.51,241.43,14.82111989]
[1732183162336,14.82111989,241.53,241.45,14.82111989]
[1732183167063,30.73561989,241.54,241.46,14.82111989]
[1732183167356,30.73561989,241.54,241.37,23.776884]
[1732183167357,15.9145,241.54,241.47,14.82111989]
[1732183168162,30.73561989,241.54,241.46,14.82111989]
[1732183169052,15.9145,241.54,241.47,14.82111989]
[1732183169753,15.9145,241.54,241.51,14.82111989]
[1732183169968,15.9145,241.54,241.44,14.82111989]
[1732183169969,15.9145,241.54,241.5,14.82111989]
[1732183170472,15.9145,241.54,241.49,14.82111989]
[1732183171044,15.9145,241.54,241.48,14.82111989]
[1732183172343,15.9145,241.54,241.49,14.82111989]
[1732183172858,15.9145,241.54,241.49,9.46352364]
[1732183174741,15.9145,241.54,241.51,9.46352364]
[1732183176348,15.9145,241.54,241.37,23.776884]
[1732183176547,15.9145,241.54,241.48,9.46352364]
[1732183177569,15.9145,241.54,241.46,9.46352364]
[1732183177780,15.9145,241.54,241.48,9.46352364]
[1732183179152,15.9145,241.54,241.46,9.46352364]
[1732183179675,25.37802364,241.54,241.45,9.46352364]
[1732183182246,9.46352364,241.52,241.43,9.46352364]
[1732183183048,9.46352364,241.52,241.35,23.776884]
[1732183183252,9.46352364,241.52,241.44,9.46352364]
[1732183183869,25.37802364,241.54,241.46,9.46352364]
[1732183184675,15.9145,241.54,241.46,9.46352364]
[1732183184986,15.9145,241.54,241.48,9.46352364]
[1732183185862,15.9145,241.54,241.5,9.46352364]
[1732183186061,6.4425,241.57,241.52,9.46352364]
[1732183187476,6.4425,241.57,241.42,15.5941]
[1732183187477,15.90602364,241.57,241.5,9.46352364]
[1732183189498,6.4425,241.57,241.52,9.46352364]
[1732183189776,6.4425,241.57,241.44,37.85409456]
[1732183189777,6.4425,241.57,241.51,9.46352364]
[1732183190978,6.4425,241.57,241.53,9.46352364]
[1732183192383,6.4425,241.57,241.51,9.46352364]
[1732183193179,6.4425,241.57,241.42,15.5941]
[1732183193375,6.4425,241.57,241.49,9.46352364]
[1732183193557,9.46352364,241.54,241.42,15.5941]
[1732183193765,9.46352364,241.54,241.46,9.46352364]
[1732183193964,9.46352364,241.54,241.47,9.46352364]
[1732183194173,9.46352364,241.54,241.45,9.46352364]
[1732183194779,9.46352364,241.52,241.37,3.62828604]
[1732183194961,9.46352364,241.52,241.44,9.46352364]
[1732183195166,9.46352364,241.53,241.45,9.46352364]
[1732183195465,9.46352364,241.51,241.43,9.46352364]
[1732183195663,25.75612364,241.51,241.43,9.46352364]
[1732183195893,25.75612364,241.51,241.37,3.62828604]
[1732183196190,25.75612364,241.51,241.43,9.46352364]
[1732183196565,25.75612364,241.51,241.33,4.86179574]
[1732183196761,9.46352364,241.5,241.43,9.46352364]
[1732183197362,9.46352364,241.5,241.33,4.86179574]
[1732183197363,9.46352364,241.47,241.4,9.46352364]
[1732183197566,16.02592364,241.48,241.41,9.46352364]
[1732183197971,6.5624,241.48,241.42,9.46352364]
[1732183199388,6.5624,241.48,241.45,9.46352364]
[1732183200783,16.2926,241.51,241.45,9.46352364]
[1732183201085,6.2609,241.54,241.5,9.46352364]
[1732183201386,6.2609,241.54,241.52,9.46352364]
[1732183201592,6.3666,241.6,241.52,9.46352364]
[1732183201802,6.3666,241.6,241.55,9.46352364]
[1732183201973,6.3666,241.6,241.57,9.46352364]
[1732183202169,6.3666,241.6,241.55,9.46352364]
[1732183202368,6.3666,241.6,241.45,23.776884]
[1732183202591,6.3666,241.6,241.55,9.46352364]
[1732183202781,6.3666,241.6,241.57,14.77690476]
[1732183202984,6.3666,241.6,241.55,14.77690476]
[1732183205101,6.3666,241.6,241.56,14.77690476]
[1732183205892,6.3666,241.6,241.55,14.77690476]
[1732183206096,14.77690476,241.59,241.51,14.77690476]
[1732183206489,21.14350476,241.6,241.52,14.77690476]
[1732183207177,14.77690476,241.59,241.52,14.77690476]
[1732183207603,14.77690476,241.58,241.51,14.77690476]
[1732183207909,14.77690476,241.58,241.5,14.77690476]
[1732183208082,14.77690476,241.58,241.51,14.77690476]
[1732183209704,14.77690476,241.58,241.5,14.77690476]
[1732183210606,14.77690476,241.53,241.45,14.77690476]
[1732183211515,14.77690476,241.55,241.48,14.77690476]
[1732183211724,14.77690476,241.56,241.49,14.77690476]
[1732183212011,6.3666,241.6,241.53,14.77690476]
[1732183212401,6.3666,241.6,241.55,14.77690476]
[1732183213317,16.2303,241.62,241.57,14.77690476]
[1732183213517,6.4961,241.64,241.61,14.77690476]
[1732183213693,6.4961,241.64,241.56,14.77690476]
[1732183213694,6.4961,241.64,241.62,14.77690476]
[1732183213891,16.4897,241.68,241.62,14.77690476]
[1732183214406,16.4897,241.68,241.64,14.77690476]
[1732183214935,6.4961,241.7,241.64,14.77690476]
[1732183215212,6.4961,241.7,241.66,14.77690476]
[1732183216292,6.4961,241.7,241.63,14.77690476]
[1732183217004,6.4961,241.7,241.64,14.77690476]
[1732183217404,21.27300476,241.7,241.63,14.77690476]
[1732183217608,21.27300476,241.7,241.54,3.62828604]
[1732183217609,14.77690476,241.66,241.59,14.77690476]
[1732183217891,14.77690476,241.68,241.61,14.77690476]
[1732183218100,14.77690476,241.67,241.6,14.77690476]
[1732183218324,14.77690476,241.67,241.53,5.86463741]
[1732183218325,14.77690476,241.67,241.59,14.77690476]
[1732183218530,14.77690476,241.66,241.58,14.77690476]
[1732183218902,14.77690476,241.63,241.5,15.6376]
[1732183219229,6.4961,241.7,241.57,14.77690476]
[1732183219230,14.77690476,241.64,241.57,14.77690476]
[1732183219424,14.77690476,241.65,241.57,14.77690476]
[1732183219915,14.77690476,241.65,241.59,14.77690476]
[1732183220239,14.77690476,241.66,241.59,14.77690476]
[1732183220613,14.77690476,241.68,241.6,14.77690476]
[1732183222836,6.4961,241.7,241.62,14.77690476]
[1732183222837,21.27300476,241.7,241.62,14.77690476]
[1732183225017,4.1362,241.77,241.62,14.77690476]
[1732183225225,14.77690476,241.72,241.64,14.77690476]
[1732183225719,14.77690476,241.72,241.66,14.77690476]
[1732183226625,14.77690476,241.72,241.57,6.4135]
[1732183226626,9.45017442,241.73,241.65,9.45017442]
[1732183227606,9.45017442,241.71,241.63,9.45017442]
[1732183227813,9.45017442,241.71,241.57,23.776884]
[1732183228132,9.45017442,241.71,241.62,9.45017442]
[1732183229522,9.45017442,241.69,241.62,9.45017442]
[1732183232747,9.45017442,241.67,241.53,5.29193685]
[1732183232928,9.45017442,241.65,241.57,9.45017442]
[1732183233540,9.45017442,241.65,241.47,9.64572145]
[1732183233724,9.45017442,241.65,241.56,9.45017442]
[1732183235122,9.45017442,241.64,241.57,9.45017442]
[1732183235321,9.45017442,241.65,241.58,9.45017442]
[1732183235634,22.7865,241.7,241.48,3.62828604]
[1732183235635,22.7865,241.7,241.59,9.45017442]
[1732183235837,9.45017442,241.67,241.59,9.45017442]
[1732183236834,22.7865,241.7,241.49,0.5]
[1732183237037,9.45017442,241.67,241.59,9.45017442]
[1732183237722,9.45017442,241.67,241.51,23.776884]
[1732183237922,9.45017442,241.67,241.59,9.45017442]
[1732183242829,9.45017442,241.65,241.57,9.45017442]
[1732183243243,9.45017442,241.67,241.59,9.45017442]
[1732183243839,22.7865,241.7,241.61,9.45017442]
[1732183244145,9.45017442,241.64,241.56,9.45017442]
[1732183244554,9.45017442,241.66,241.58,9.45017442]
[1732183245361,22.7865,241.7,241.56,9.45017442]
[1732183245362,9.45017442,241.64,241.56,9.45017442]
[1732183245851,22.7865,241.7,241.56,9.45017442]
[1732183246060,9.45017442,241.65,241.58,9.45017442]
[1732183246552,9.45017442,241.65,241.56,9.45017442]
[1732183246849,9.45017442,241.65,241.5,15.6376]
[1732183247036,9.45017442,241.65,241.44,38.30069768]
[1732183247037,9.45017442,241.59,241.51,9.45017442]
[1732183249946,23.776884,241.67,241.51,9.45017442]
[1732183250260,9.45017442,241.59,241.51,9.45017442]
[1732183250440,9.45017442,241.62,241.53,9.45017442]
[1732183250758,9.45017442,241.62,241.55,9.45017442]
[1732183250958,22.7865,241.7,241.55,9.45017442]
[1732183251158,22.7865,241.7,241.47,24.276884]
[1732183251159,9.45017442,241.64,241.57,9.45017442]
[1732183252961,9.45017442,241.64,241.55,9.45017442]
[1732183253445,37.80069768,241.68,241.55,9.45017442]
[1732183253649,22.7865,241.7,241.55,9.45017442]
[1732183253857,9.45017442,241.63,241.55,9.45017442]
[1732183259965,9.45017442,241.57,241.52,23.776884]
[1732183260139,9.45017442,241.57,241.49,9.45017442]
[1732183260465,9.45017442,241.55,241.47,9.45017442]
[1732183260963,9.45017442,241.55,241.46,10.11478187]
[1732183261458,9.45017442,241.55,241.47,9.45017442]
[1732183261659,9.45017442,241.55,241.47,23.776884]
[1732183262163,37.80069768,241.68,241.49,9.45017442]
[1732183262367,9.45017442,241.57,241.5,23.776884]
[1732183262741,23.776884,241.69,241.5,23.776884]
[1732183263070,23.776884,241.69,241.49,9.45017442]
[1732183263071,9.45017442,241.57,241.49,9.45017442]
[1732183263840,37.80069768,241.68,241.47,23.776884]
[1732183263841,9.45017442,241.55,241.47,23.776884]
[1732183264146,9.45017442,241.55,241.47,33.22705842]
[1732183265450,9.45017442,241.55,241.44,16.2249]
[1732183265451,9.45017442,241.49,241.44,16.2249]
[1732183265655,9.45017442,241.49,241.4,9.45017442]
[1732183265855,9.45017442,241.47,241.4,9.45017442]
[1732183266066,9.45017442,241.47,241.38,26.00917442]
[1732183266740,22.4506,241.6,241.38,26.00917442]
[1732183266945,27.916084,241.59,241.38,26.00917442]
[1732183267146,37.80069768,241.56,241.38,26.00917442]
[1732183267362,9.45017442,241.48,241.4,9.45017442]
[1732183267546,9.45017442,241.46,241.38,16.559]
[1732183267867,9.45017442,241.46,241.39,9.45017442]
[1732183269064,9.45017442,241.42,241.32,3.86098187]
[1732183269362,9.45017442,241.42,241.35,9.45017442]
[1732183269748,9.45017442,241.4,241.32,3.86098187]
[1732183269949,9.45017442,241.4,241.32,9.45017442]
[1732183270265,9.45017442,241.4,241.27,10.8868846]
[1732183270266,9.45017442,241.36,241.27,3.86098187]
[1732183270455,9.45017442,241.36,241.27,9.45017442]
[1732183270863,9.45017442,241.34,241.27,9.45017442]
[1732183271547,9.45017442,241.34,241.25,15.0229]
[1732183271866,9.45017442,241.32,241.24,9.45017442]
[1732183272245,9.45017442,241.32,241.21,9.15291872]
[1732183272444,9.45017442,241.32,241.23,9.45017442]
[1732183273564,9.45017442,241.3,241.2,316.96464064]
[1732183273748,9.45017442,241.3,241.22,9.45017442]
[1732183273950,9.45017442,241.32,241.24,9.45017442]
[1732183275253,22.6134,241.39,241.2,316.96464064]
[1732183275254,9.45017442,241.3,241.2,316.96464064]
[1732183275459,9.45017442,241.26,241.2,316.96464064]
[1732183279245,9.45017442,241.28,241.2,326.41481506]
[1732183280064,9.45017442,241.29,241.2,326.41481506]
[1732183280372,9.45017442,241.33,241.24,9.45017442]
[1732183281161,9.45017442,241.33,241.26,9.45017442]
[1732183281673,9.45017442,241.33,241.24,9.45017442]
[1732183282273,9.45017442,241.34,241.26,9.45017442]
[1732183282448,9.45017442,241.36,241.28,9.45017442]
[1732183282852,9.45017442,241.38,241.3,9.45017442]
[1732183283160,9.45017442,241.38,241.21,39.351484]
[1732183283476,9.45017442,241.38,241.3,9.45017442]
[1732183284660,37.42066305,241.39,241.3,14.80726305]
[1732183285171,37.42066305,241.39,241.32,14.80726305]
[1732183285353,22.6134,241.39,241.36,14.80726305]
[1732183285553,22.6134,241.39,241.34,14.80726305]
[1732183286961,6.0988,241.44,241.36,14.80726305]
[1732183287175,6.0988,241.44,241.38,14.80726305]
[1732183288172,6.0988,241.44,241.4,14.80726305]
[1732183289387,6.0988,241.44,241.35,14.80726305]
[1732183289586,14.80726305,241.43,241.35,14.80726305]
[1732183289877,14.80726305,241.41,241.33,14.80726305]
[1732183290064,14.80726305,241.39,241.31,14.80726305]
[1732183290574,20.90606305,241.44,241.25,8.72032203]
[1732183290575,14.80726305,241.37,241.29,14.80726305]
[1732183296067,14.80726305,241.37,241.25,4.85934016]
[1732183296261,15.074,241.34,241.26,14.80726305]
[1732183296462,6.6453,241.33,241.26,14.80726305]
[1732183296975,21.45256305,241.33,241.24,14.80726305]
[1732183298778,22.9807,241.4,241.29,14.80726305]
[1732183299081,22.9807,241.4,241.2,331.77190369]
[1732183299082,14.80726305,241.39,241.31,14.80726305]
[1732183299677,22.9807,241.4,241.33,14.80726305]
[1732183299891,22.9807,241.4,241.35,14.80726305]
[1732183300058,14.80726305,241.46,241.37,14.80726305]
[1732183300264,14.80726305,241.44,241.35,14.80726305]
[1732183300461,14.80726305,241.42,241.35,14.80726305]
[1732183300677,14.80726305,241.4,241.33,14.80726305]
[1732183301586,14.80726305,241.44,241.35,14.80726305]
[1732183301879,14.80726305,241.42,241.33,14.80726305]
[1732183303262,14.80726305,241.4,241.33,14.80726305]
[1732183303878,14.80726305,241.4,241.31,14.80726305]
[1732183308059,14.80726305,241.42,241.33,14.80726305]
[1732183310286,14.80726305,241.4,241.33,14.80726305]
[1732183313195,14.80726305,241.4,241.31,14.80726305]
[1732183313685,14.80726305,241.38,241.31,14.80726305]
[1732183313984,22.5938,241.39,241.31,14.80726305]
[1732183314365,22.5938,241.39,241.34,14.80726305]
[1732183314982,22.5938,241.39,241.23,3.86098187]
[1732183315186,22.5938,241.39,241.33,14.80726305]
[1732183316072,22.5938,241.39,241.35,14.80726305]
[1732183316806,23.776884,241.38,241.35,14.80726305]
[1732183317272,23.776884,241.38,241.32,14.80726305]
[1732183317671,23.776884,241.38,241.35,14.80726305]
[1732183320271,23.776884,241.38,241.33,14.80726305]
[1732183320471,23.776884,241.38,241.2,205.72020962]
[1732183320472,23.776884,241.38,241.31,14.80726305]
[1732183323201,23.776884,241.38,241.2,184.77634657]
[1732183323202,15.5343,241.37,241.2,184.77634657]
[1732183323415,6.3171,241.35,241.28,14.80726305]
[1732183323601,23.776884,241.33,241.26,14.80726305]
[1732183324178,23.776884,241.33,241.28,14.80726305]
[1732183324702,23.776884,241.33,241.28,9.48119899]
[1732183325074,22.8773,241.32,241.2,184.77634657]
[1732183325279,23.776884,241.31,241.27,9.48119899]
[1732183326515,22.8773,241.32,241.27,9.48119899]
[1732183327091,22.8773,241.32,241.2,184.77634657]
[1732183327291,9.48119899,241.25,241.2,184.77634657]
[1732183327501,16.4674,241.28,241.2,184.77634657]
[1732183327502,23.776884,241.24,241.2,184.77634657]
[1732183328176,23.776884,241.27,241.2,184.77634657]
[1732183328579,23.776884,241.27,241.2,194.25754556]
[1732183329182,0.5,241.23,241.2,184.77634657]
[1732183329390,30.310584,241.21,241.2,168.10974657]
[1732183331595,45.14025406,241.21,241.2,144.77654657]
[1732183331983,45.64025406,241.21,241.2,104.77674657]
[1732183332509,30.310584,241.21,241.2,104.77674657]
[1732183333392,45.14025406,241.21,241.2,104.77674657]
[1732183334328,45.64025406,241.21,241.2,104.77674657]
[1732183334678,46.14025406,241.21,241.2,104.77674657]
[1732183335491,31.310584,241.21,241.2,104.77674657]
[1732183335689,46.14025406,241.21,241.2,104.77674657]
[1732183335888,45.14025406,241.21,241.2,104.77674657]
[1732183337412,6.5337,241.21,241.2,104.77674657]
[1732183338496,30.310584,241.21,241.2,104.77674657]
[1732183338798,0.5,241.28,241.2,122.09391663]
[1732183338799,6.2696,241.27,241.2,122.09391663]
[1732183339913,4.6435,241.34,241.26,14.82967006]
[1732183340201,14.82967006,241.33,241.26,14.82967006]
[1732183340709,14.82967006,241.29,241.22,14.82967006]
[1732183341090,23.776884,241.28,241.22,14.82967006]
[1732183341390,23.776884,241.28,241.2,107.26424657]
[1732183342181,14.82967006,241.27,241.2,107.26424657]
[1732183342715,23.776884,241.26,241.2,107.26424657]
[1732183343709,14.82967006,241.27,241.2,107.26424657]
[1732183344011,23.776884,241.28,241.21,14.82967006]
[1732183350601,33.26267864,241.28,241.2,114.26254121]
[1732183351607,9.48579464,241.26,241.2,104.77674657]
[1732183352405,33.26267864,241.28,241.2,104.77674657]
[1732183352605,0.5,241.34,241.21,9.48579464]
[1732183352606,23.776884,241.34,241.21,9.48579464]
[1732183352808,9.48579464,241.3,241.21,9.48579464]
[1732183353806,15.8442,241.38,241.25,9.48579464]
[1732183354108,9.48579464,241.35,241.27,9.48579464]
[1732183354810,9.48579464,241.38,241.3,9.48579464]
[1732183355518,9.48579464,241.4,241.34,9.48579464]
[1732183355694,9.48579464,241.44,241.36,9.48579464]
[1732183355900,26.03923064,241.46,241.38,9.48579464]
[1732183356504,9.48579464,241.44,241.36,9.48579464]
[1732183356703,10.5142,241.49,241.35,14.80316738]
[1732183357000,14.80316738,241.44,241.35,14.80316738]
[1732183357704,23.776884,241.43,241.37,14.80316738]
[1732183359120,14.80316738,241.44,241.37,14.80316738]
[1732183360725,14.80316738,241.44,241.35,14.80316738]
[1732183360926,14.80316738,241.42,241.33,14.80316738]
[1732183361131,14.80316738,241.4,241.31,14.80316738]
[1732183363208,14.80316738,241.42,241.33,14.80316738]
[1732183363530,23.776884,241.43,241.28,15.6159]
[1732183363531,14.80316738,241.44,241.35,14.80316738]
[1732183364220,22.924855,241.49,241.28,15.6159]
[1732183364221,14.80316738,241.42,241.32,14.80316738]
[1732183364815,14.80316738,241.42,241.34,14.80316738]
[1732183367514,14.80316738,241.4,241.32,14.80316738]
[1732183368517,14.80316738,241.42,241.34,14.80316738]
[1732183368723,38.58005138,241.44,241.36,14.80316738]
[1732183369123,14.80316738,241.4,241.28,15.6159]
[1732183369431,14.80316738,241.4,241.33,14.80316738]
[1732183371124,9.87316738,241.4,241.33,14.80316738]
[1732183371331,14.80316738,241.42,241.33,14.80316738]
[1732183371537,14.80316738,241.42,241.35,14.80316738]
[1732183373516,23.776884,241.45,241.37,14.80316738]
[1732183373833,14.80316738,241.46,241.37,14.80316738]
[1732183374815,19.2657,241.51,241.32,14.80316738]
[1732183374816,23.776884,241.47,241.39,14.80316738]
[1732183375022,23.776884,241.47,241.39,31.66956738]
[1732183376127,14.80316738,241.5,241.41,14.80316738]
[1732183376512,23.776884,241.49,241.41,14.80316738]
[1732183376716,23.776884,241.49,241.41,9.468938]
[1732183376915,9.468938,241.5,241.43,9.468938]
[1732183377139,9.468938,241.52,241.43,9.468938]
[1732183379849,9.468938,241.5,241.41,9.468938]
[1732183381221,9.468938,241.48,241.39,16.8664]
[1732183382425,9.468938,241.44,241.39,16.8664]
[1732183384544,9.468938,241.46,241.39,16.8664]
[1732183384923,23.776884,241.48,241.4,9.468938]
[1732183385123,33.245822,241.48,241.4,9.468938]
[1732183387261,16.545868,241.55,241.42,9.468938]
[1732183387538,9.468938,241.5,241.42,9.468938]
[1732183387743,9.468938,241.5,241.4,9.468938]
[1732183388849,9.468938,241.51,241.42,9.468938]
[1732183389833,13.608438,241.57,241.44,9.468938]
[1732183390044,9.468938,241.52,241.44,9.468938]
[1732183390348,9.468938,241.52,241.42,9.468938]
[1732183392236,9.468938,241.52,241.44,9.468938]
[1732183393529,6.9267,241.66,241.5,9.468938]
[1732183393846,9.468938,241.64,241.56,9.468938]
[1732183394033,7.4267,241.72,241.58,9.468938]
[1732183394234,9.468938,241.66,241.58,9.468938]
[1732183394643,9.468938,241.65,241.56,9.468938]
[1732183394836,9.468938,241.63,241.55,17.1108]
[1732183395428,9.468938,241.61,241.55,17.1108]
[1732183396736,14.78170098,241.61,241.55,17.1108]
[1732183397326,14.78170098,241.63,241.56,14.78170098]
[1732183397551,23.776884,241.65,241.56,14.78170098]
[1732183398049,14.78170098,241.64,241.56,14.78170098]
[1732183398260,14.78170098,241.62,241.55,17.1108]
[1732183403955,14.78170098,241.6,241.55,17.1108]
[1732183407434,14.78170098,241.57,241.47,6.8542]
[1732183407654,14.78170098,241.55,241.47,21.63590098]
[1732183407853,14.78170098,241.57,241.49,14.78170098]
[1732183408759,14.78170098,241.59,241.51,14.78170098]
[1732183410240,14.78170098,241.68,241.53,14.78170098]
[1732183410241,14.78170098,241.61,241.53,14.78170098]
[1732183410435,14.78170098,241.63,241.55,14.78170098]
[1732183410859,14.78170098,241.65,241.57,14.78170098]
[1732183411058,14.78170098,241.67,241.59,14.78170098]
[1732183411954,14.78170098,241.67,241.58,7.5237]
[1732183411955,14.78170098,241.69,241.61,14.78170098]
[1732183412161,7.4448,241.78,241.63,14.78170098]
[1732183412347,14.78170098,241.71,241.61,14.78170098]
[1732183412670,14.78170098,241.69,241.61,14.78170098]
[1732183413656,14.78170098,241.67,241.6,17.7672]
[1732183414372,14.78170098,241.65,241.6,17.7672]
[1732183414667,14.78170098,241.61,241.6,17.7672]
[1732183416864,14.78170098,241.63,241.6,17.7672]
[1732183420358,14.78170098,241.61,241.6,17.7672]
[1732183420873,14.78170098,241.61,241.55,14.78170098]
[1732183421057,14.78170098,241.61,241.53,39.73490098]
[1732183421770,14.78170098,241.63,241.53,39.73490098]
[1732183421948,14.78170098,241.61,241.53,39.73490098]
[1732183422773,9.46024514,241.61,241.53,34.41344514]
[1732183424778,9.46024514,241.63,241.55,9.46024514]
[1732183425072,9.46024514,241.65,241.55,9.46024514]
[1732183425651,23.776884,241.67,241.57,9.46024514]
[1732183425862,4.1362,241.77,241.61,9.46024514]
[1732183426058,9.46024514,241.71,241.61,9.46024514]
[1732183426374,9.46024514,241.71,241.64,15.8322]
[1732183426575,4.1362,241.77,241.64,15.8322]
[1732183426768,9.46024514,241.71,241.64,15.8322]
[1732183428666,14.76940752,241.71,241.64,15.8322]
[1732183429976,14.76940752,241.73,241.65,14.76940752]
[1732183430571,14.76940752,241.75,241.65,14.76940752]
[1732183430773,38.54629152,241.77,241.67,14.76940752]
[1732183430985,38.54629152,241.77,241.64,15.8322]
[1732183430986,14.76940752,241.77,241.69,14.76940752]
[1732183431180,14.76940752,241.81,241.73,14.76940752]
[1732183431350,14.76940752,241.83,241.74,15.0341]
[1732183432074,14.76940752,241.83,241.75,14.76940752]
[1732183432970,14.76940752,241.81,241.74,15.0341]
[1732183433274,14.76940752,241.79,241.74,15.0341]
[1732183433472,14.76940752,241.77,241.74,15.0341]
[1732183434067,14.76940752,241.79,241.74,15.0341]
[1732183435482,14.76940752,241.81,241.74,15.0341]
[1732183435872,15.0341,241.86,241.75,14.76940752]
[1732183435873,14.76940752,241.83,241.75,14.76940752]
[1732183436280,15.2151,241.96,241.81,14.76940752]
[1732183436488,14.76940752,241.89,241.81,14.76940752]
[1732183437964,14.769407,241.91,241.85,14.76940752]
[1732183438190,14.76940752,241.94,241.85,14.76940752]
[1732183439591,14.76940752,241.94,241.87,14.76940752]
[1732183439783,14.76940752,241.96,241.87,14.76940752]
[1732183440289,14.76940752,241.96,241.89,14.76940752]
[1732183440789,14.769407,242.0,241.91,14.76940752]
[1732183441090,14.769407,242.0,241.95,14.76940752]
[1732183441482,14.76940752,242.05,241.97,14.76940752]
[1732183442099,14.769407,242.07,241.97,14.76940752]
[1732183442100,14.769407,242.07,242.01,14.76940752]
[1732183442266,14.76940752,242.1,242.01,14.76940752]
[1732183442470,14.76940752,242.07,241.99,14.76940752]
[1732183442682,14.76940752,242.03,241.97,15.1664]
[1732183443166,14.76940752,242.01,241.97,15.1664]
[1732183443364,14.76940752,242.08,241.98,14.76940752]
[1732183443789,14.76940752,242.06,241.98,14.76940752]
[1732183444087,18.89890752,242.16,241.97,15.1664]
[1732183444088,14.76940752,242.1,242.0,14.76940752]
[1732183444291,14.76940752,242.1,242.02,14.76940752]
[1732183446279,14.76940752,242.14,242.04,14.76940752]
[1732183446600,15.1664,242.17,242.12,14.76940752]
[1732183446772,14.76940752,242.2,242.12,14.76940752]
[1732183448098,14.76940752,242.2,242.1,14.76940752]
[1732183448299,14.76940752,242.14,242.09,6.0456]
[1732183450282,14.76940752,242.16,242.09,6.0456]
[1732183450480,14.76940752,242.18,242.09,6.0456]
[1732183451482,14.76940752,242.22,242.14,14.76940752]
[1732183452281,14.76940752,242.19,242.09,6.0456]
[1732183452481,14.76940752,242.19,242.1,14.76940752]
[1732183454096,14.76940752,242.17,242.1,14.76940752]
[1732183456386,14.76940752,242.19,242.1,14.76940752]
[1732183456589,14.76940752,242.23,242.14,14.76940752]
[1732183457479,14.76940752,242.23,242.16,14.76940752]
[1732183457909,14.76940752,242.25,242.16,14.76940752]
[1732183458092,14.76940752,242.25,242.17,16.5628]
[1732183460307,14.76940752,242.23,242.17,16.5628]
[1732183460682,14.76940752,242.21,242.17,16.5628]
[1732183461503,14.76940752,242.23,242.17,16.5628]
[1732183461888,14.76940752,242.19,242.17,16.5628]
[1732183463190,14.76940752,242.19,242.11,16.6147]
[1732183463394,14.76940752,242.17,242.11,16.6147]
[1732183464096,14.76940752,242.19,242.12,14.76940752]